Cogmind - Beta 17 @@@ ROGUE MODE // 2026.06.24 @ 11:10:32 Player: Scottariah Result: Destroyed by G-67 Veteran with Plasma Rifle Performance ------------- Evolutions (6) 3000 Regions Visited (12) 2400 Robots Destroyed (183) 915 Value Destroyed (7932) 7932 Prototype IDs (21) 420 Alien Tech Used (0) 0 Bonus (12650) 12650 TOTAL SCORE: 27317 Bonus ------- High Alert Combat Kills 335 Follower Combat Kills 934 Prayed to X0-1V1 5000 Major X0-1V1 Interference 5200 Entered Garrisons 200 Used RIF Installer 500 MAIN.C Attacked Warlord 500 Friendly Fire -19 Cogmind --------- Core Integrity 0/1460 Matter 205/1000 Energy 1499/1500 System Corruption 0% Temperature Cool (0) Movement Core (50) Location -4/Warlord Parts ------- > --- POWER (3) -------- (None) > --- PROPULSION (5) --- (None) > --- UTILITY (9) ------ Self-contained Transmogrifier > --- WEAPON (3) ------- (None) > --- INVENTORY (5) ---- Carbon-fiber Leg Peak State ------------ > --- POWER ------------ Hybrid Fission Core Light Antimatter Reactor Mini Fusion Reactor > --- PROPULSION ------- Light Armored Exoskeleton Improved VSS Leg Myomer Leg Shield Leg > --- UTILITY ---------- Medium Storage Unit Experimental Sensor Array Advanced Terrain Scan Processor Tactical Coordination Suite Core Analyzer Advanced Particle Charger Reactive Plating Self-contained Transmogrifier X0-1V1's Piety Tracker > --- WEAPON ----------- Quantum Rifle Precision Assault Rifle Heavy Battle Rifle Improved KE Penetrator Slug Cannon Slug Cannon > --- INVENTORY -------- Cooled Impulse Thruster Cooled Impulse Thruster Makeshift Trap Scanner Advanced Force Field High-powered Tractor Beam Quantum Rifle Quantum Rifle Improved Remote Datajack Makeshift Spear [Rating: 140] Favorites ----------- Power Ion Engine Engine Ion Engine Power Core Reinforced Fission Core Reactor Light Antimatter Reactor Propulsion Light Treads Treads Light Treads Leg Aluminum Leg Wheel Wheel Hover Unit Improved Antigrav System Flight Unit Flight Unit Utility X0-1V1's Piety Tracker Device X0-1V1's Piety Tracker Storage Huge Storage Unit Processor Advanced Targeting Computer Hackware Makeshift System Shield Protection Makeshift Light Armor Plating Weapon Light Cannon Energy Gun Quantum Rifle Energy Cannon Proton Cannon Ballistic Gun Light Assault Rifle Ballistic Cannon Light Cannon Launcher Rocket Array Special Weapon Mining Laser Impact Weapon Impact Mace Slashing Weapon Axe Piercing Weapon Makeshift Spear Special Melee Weapon Improved Datajack Build | -11 -10 -10 -8 -8 -8 -7 -6 -5 -4 -4 -4 -4 ------- Run | Yrd Mat Sub Mat Gar Mat Fac Fac Fac Fac Upp Upp War Slots Evolved 12 | . . . 4 . . 2 2 2 2 . . . Power 1 | . . . . . . . 1 . . . . . Propulsion 3 | . . . 1 . . 2 . . . . . . Utility 6 | . . . 3 . . . . 2 1 . . . Weapon 2 | . . . . . . . 1 . 1 . . . Parts Attached 241 | 7 10 16 26 33 13 4 11 53 24 16 4 24 Power 30 | 1 2 1 3 3 3 . 3 9 1 3 . 1 Engine 16 | 1 2 1 2 2 1 . 3 2 1 1 . . Core 12 | . . . 1 1 2 . . 7 . . . 1 Reactor 2 | . . . . . . . . . . 2 . . Propulsion 71 | 2 1 6 10 11 5 4 1 13 6 1 3 8 Treads 18 | 2 1 2 5 3 . . . 1 . 1 . 3 Leg 35 | . . 1 3 5 5 4 1 8 2 . 3 3 Wheel 6 | . . 3 2 . . . . . 1 . . . Hover 6 | . . . . 1 . . . 4 1 . . . Flight 6 | . . . . 2 . . . . 2 . . 2 Utility 78 | 2 4 1 7 11 2 . 4 20 11 7 1 8 Device 55 | 1 2 1 5 7 2 . 2 14 9 4 . 8 Storage 5 | 1 2 . . . . . . 1 . 1 . . Processor 9 | . . . 1 . . . 1 5 1 . 1 . Hackware 2 | . . . . . . . . . . 2 . . Protection 7 | . . . 1 4 . . 1 . 1 . . . Artifact . | . . . . . . . . . . . . . Weapon 62 | 2 3 8 6 8 3 . 3 11 6 5 . 7 Energy Gun 8 | 1 . . . . . . . 2 1 1 . 3 Energy Cannon 1 | . . . . . . . . . 1 . . . Ballistic Gun 24 | 1 1 2 6 4 3 . 2 2 1 1 . 1 Ballistic Cannon 13 | . 2 3 . 3 . . . . 1 1 . 3 Launcher . | . . . . . . . . . . . . . Special Weapon 5 | . . 1 . . . . . 2 1 1 . . Impact Weapon 3 | . . 2 . . . . . 1 . . . . Slashing Weapon 6 | . . . . 1 . . 1 4 . . . . Piercing Weapon 1 | . . . . . . . . . . 1 . . Special Melee Weapon 1 | . . . . . . . . . 1 . . . Unidentified Prototypes 4 | . 1 . 1 . . . . 1 . . . 1 Corrupted Parts 5 | . . . . . . . . . 4 1 . . System Corruption 18 | . . . . . . . . . 15 3 . . Parts Lost 110 | . . 8 3 19 4 . . 20 23 1 . 32 Power 15 | . . 1 . 1 2 . . 5 3 . . 3 Propulsion 35 | . . 4 2 7 . . . 6 8 . . 8 Utility 35 | . . 1 1 7 1 . . 6 7 1 . 11 Weapon 25 | . . 2 . 4 1 . . 3 5 . . 10 Highest Loss Streak 12 | . . 4 1 7 3 . . 6 9 1 . 12 To Critical Strikes 3 | . . 1 1 . . . . . 1 . . . Average Backups 17 | 3 14 22 24 22 24 24 23 18 4 6 10 6 Power . | . . 1 . . . . . . . . . . Propulsion 1 | 1 2 1 . 1 2 3 3 3 . . 2 1 Utility 8 | . 2 4 9 17 17 16 15 12 2 3 4 1 Weapon 6 | 1 9 15 13 3 3 5 4 3 . 2 3 2 Tool/Special . | . . . . . . . . . . . . . Unused Backups 48 | . 5 2 15 1 5 2 4 11 . 2 1 . Power 1 | . . . . . 1 . . . . . . . Propulsion 9 | . 1 . . 1 3 2 . 2 . . . . Utility 19 | . 1 1 3 . 1 . 4 7 . 2 . . Weapon 19 | . 3 1 12 . . . . 2 . . 1 . Tool/Special . | . . . . . . . . . . . . . Average Slot Usage (%) 89 | . 99 95 89 90 94 91 86 87 76 84 100 61 Engine 6 | . 14 12 4 4 5 7 11 5 . 4 . . Core 3 | . . . 3 3 2 . . 9 8 1 5 3 Reactor 1 | . . . . . . . . . . 7 10 5 Treads 9 | . 27 25 10 4 4 . . 1 1 . . . Leg 11 | . . . 9 15 16 27 25 18 5 19 25 12 Wheel 1 | . . 1 4 2 . . . . . . . . Hover 1 | . . . . 1 . . . 2 9 . . . Device 16 | . 14 12 15 16 24 21 16 19 18 18 25 16 Storage 7 | . 14 13 8 8 8 7 6 3 . 2 5 3 Processor 5 | . . . 7 8 . . 1 8 13 8 10 4 Protection 3 | . . . 7 6 7 7 6 1 2 2 . 1 Energy Gun 1 | . 5 . . . . . . 1 . 1 5 3 Ballistic Gun 5 | . 7 . 12 7 14 7 6 1 . 5 10 5 Ballistic Cannon 6 | . 15 18 2 3 7 14 10 . . 2 . 1 Special Weapon 1 | . . 6 . . . . . . 2 1 . . Impact Weapon 1 | . . 2 1 . . . . 3 3 . . . Slashing Weapon 1 | . . . . 4 1 . 2 4 6 1 . . Peak Build Rating 140 | 8 21 27 53 56 66 74 89 115 127 120 133 140 Average Rating 59 | 5 8 21 41 47 58 73 85 101 98 102 130 89 On Entrance 62 | . 8 21 24 47 54 64 74 89 108 77 119 131 Avg Prop Armor Cover (%) 10 | . . 15 9 8 7 . . 15 8 2 . 9 Naked Turns . | . . . . . . . . . . . . . Heaviest Build 167 | 13 92 92 103 115 109 112 132 167 81 92 84 87 Greatest Support 118 | 40 40 40 63 59 56 90 90 96 55 88 118 105 Greatest Overweight (x) 28 | . 2 28 10 10 2 1 1 3 4 1 . 27 Average Overweight (x) 1 | . . 2 3 3 1 1 1 1 1 . . . Largest Inventory Capacity 25 | 8 25 25 25 25 25 25 25 25 5 10 10 10 Average Capacity 19 | 7 18 25 25 25 25 25 25 20 5 7 10 8 Most Carried 25 | 7 22 25 25 25 25 25 25 25 5 10 10 10 Average Carried 17 | 3 14 22 24 22 24 24 23 18 4 7 9 6 Final Capacity 25 | 8 25 25 25 25 25 25 25 5 5 10 10 5 Final Carried 25 | 7 22 25 24 25 25 25 25 5 5 10 10 1 Transmogrified Parts 86 | . . . . 4 7 1 7 22 14 18 6 7 Integrity Recovered 1850 | . . . . 110 117 30 36 162 197 683 64 451 Class Distribution -------------------- 54% | Mutant 12% | Scavenger-Mutant 7% | Gunner 7% | Scavenger-Gladiator 6% | Derelict-Gunner 6% | Tank Dominant Class ---------------- Mutant | -10/Materials Mutant | -10/Subcaves Mutant | -8/Materials Scavenger-Mutant | -8/Garrison Tank | -8/Materials Tank | -7/Factory Tank | -6/Factory Mutant | -5/Factory Scavenger-Gladiator | -4/Factory Derelict-Gunner | -4/Upper Caves Gunner | -4/Upper Caves Gunner | -4/Warlord Resources | -11 -10 -10 -8 -8 -8 -7 -6 -5 -4 -4 -4 -4 ----------- Run | Yrd Mat Sub Mat Gar Mat Fac Fac Fac Fac Upp Upp War Matter Collected 6832 | 309 258 302 1704 774 413 . 423 691 447 532 177 802 Remotely 514 | . . . 104 26 . . . . . . . 384 Salvage Created 8001 | 182 585 290 1611 784 549 . 262 2073 499 461 84 621 Parts 342 | 13 24 18 68 44 32 . 11 80 18 9 4 21 Haulers Intercepted 5 | . 2 . 2 . 1 . . . . . . . Recyclers Shooed 2 | . . . 2 . . . . . . . . . Parts Field Recycled . | . . . . . . . . . . . . . Retrieved Matter . | . . . . . . . . . . . . . Parts Self-Destructed 26 | . . 12 . . . . . . . 10 4 . Prevented . | . . . . . . . . . . . . . Parts Restored . | . . . . . . . . . . . . . Kills | -11 -10 -10 -8 -8 -8 -7 -6 -5 -4 -4 -4 -4 ------- Run | Yrd Mat Sub Mat Gar Mat Fac Fac Fac Fac Upp Upp War Combat Hostiles Destroyed 150 | . 14 13 30 29 8 . 1 25 8 10 1 11 Melee 15 | . . . 4 1 . . . 8 1 1 . . Guns 71 | . 9 . 21 22 6 . . 7 1 . 1 4 Cannons 37 | . 5 12 1 6 2 . 1 . 4 . . 6 AOE 11 | . . . . . . . . 1 . 9 . 1 Classes Destroyed 22 | 2 4 2 4 4 . . . 4 . . . 2 Worker 3 | . . . . . . . . 3 . . . . Builder 1 | . . . . . . . . 1 . . . . Tunneler 5 | 4 . . . . . . . 1 . . . . Hauler 5 | . 2 . 2 . 1 . . . . . . . Recycler 12 | 1 1 . 3 . 2 . 2 3 . . . . Mechanic 1 | . . . . . . . . 1 . . . . Operator 4 | . 1 . 1 . . . 1 . 1 . . . Turret 2 | . . 2 . . . . . . . . . . Swarmer 23 | . 3 7 . 11 . . 1 . . 1 . . Saboteur 1 | . . . . . . . . 1 . . . . Grunt 55 | . 11 . 19 8 3 . . 10 . 4 . . Brawler 5 | . . . 1 . . . . 4 . . . . Duelist 5 | . . . 1 . . . . 2 . 2 . . Protector 1 | . . . . 1 . . . . . . . . Sentry 15 | . . . 7 2 3 . . 2 1 . . . Demolisher 1 | . . . . 1 . . . . . . . . Specialist 6 | . . . 2 2 2 . . . . . . . Hunter 11 | . . . . 1 . . . 2 5 2 1 . Programmer 10 | . . . . 3 . . . 4 2 1 . . Subdweller 6 | . . 6 . . . . . . . . . . Thug 7 | . . . . . . . . . . . . 7 Bouncer 2 | . . . . . . . . . . . . 2 Marauder 1 | . . . . . . . . . . . . 1 Mutant 1 | . . . . . . . . . . . . 1 Best Kill Streak 9 | 5 3 4 8 4 3 . 2 5 3 9 1 5 Combat Bots Only 9 | . 2 4 8 4 3 . 1 3 3 9 1 5 Max Kills in Single Turn 3 | 1 1 1 1 1 1 . 1 1 1 3 1 1 Gunslinging . | . . . . . . . . . . . . . Exploded 3 | . . . . . . . . 1 . 3 . 1 Melee 1 | . . . 1 1 . . . 1 1 1 . . Uniques/NPCs Destroyed . | . . . . . . . . . . . . . Combat | -11 -10 -10 -8 -8 -8 -7 -6 -5 -4 -4 -4 -4 -------- Run | Yrd Mat Sub Mat Gar Mat Fac Fac Fac Fac Upp Upp War Hostile Shots Fired 2147 | . 73 111 116 282 67 . 39 353 287 113 17 689 Missed 650 | . 17 38 19 69 15 . 15 91 107 42 7 230 Deflected 7 | . . . . . . . . . . . . 7 Hits 1497 | . 56 73 97 213 52 . 24 262 180 71 10 459 Melee 20 | . . . 1 . . . 1 18 . . . . Projectile 1477 | . 56 73 96 213 52 . 23 244 180 71 10 459 AOE 20 | . . 1 . 6 . . . 3 . . . 10 Critical Strikes 94 | . 3 3 5 10 3 . 1 21 5 3 . 40 Actively Blocked 1 | . . . . . 1 . . . . . . . Part Disruptions 3 | . . . . 1 . . . 1 . . . 1 Damage Taken 25549 | . 750 1344 1511 3723 803 . 419 5471 3129 1362 20 7017 Core 3708 | . 105 300 179 420 111 . 36 439 506 27 5 1580 Absorbed by Shields 421 | . . . 18 80 164 . 4 . 63 . 26 66 Redirected to Shielding 36 | . . . . . 36 . . . . . . . Ignored by Resistances 9586 | . . . . . . . . 449 . 234 133 8770 Regen/Repaired (Parts) 106 | . 106 . . . . . . . . . . . Core Remaining (%) 71 | 100 . 51 . . 17 100 96 66 . . . . Volleys Fired 544 | 13 57 49 53 74 40 . 10 125 52 14 3 54 Largest 4 | 2 2 2 2 3 3 . 4 2 2 3 3 4 Hottest 264 | 70 70 100 60 74 95 . 124 150 128 155 155 264 Shots Fired 932 | 26 113 78 100 155 120 . 29 129 60 20 9 93 Gun 618 | 26 78 1 98 109 99 . 12 115 18 10 9 43 Cannon 280 | . 35 59 2 46 21 . 17 8 42 . . 50 Launcher 9 | . . . . . . . . . . 9 . . Special 25 | . . 18 . . . . . 6 . 1 . . Kinetic 709 | 13 76 60 100 155 120 . 29 18 38 9 6 85 Thermal 80 | 13 37 18 . . . . . . . 1 3 8 Explosive 9 | . . . . . . . . . . 9 . . Electromagnetic 127 | . . . . . . . . 105 22 . . . Robot Hit Streak 35 | 10 10 10 35 12 19 . 12 16 14 15 8 15 Robot Miss Streak 8 | 4 5 3 6 8 3 . 8 3 3 3 . 4 Penetration Max 1 | . . . . . . . . 1 . . . 1 Secondary Targets 14 | . 2 . 4 7 1 . . . . . . . Max Gunslinging Chain 1 | . 1 . 1 1 1 . . . . . . . Capacitor 96 | . . . . . . . . 96 . . . . Shots Hit Robots 795 | 15 72 52 109 118 84 . 22 160 68 27 8 60 Core Hits 473 | 6 30 20 102 90 34 . 14 53 25 70 5 24 Critical Kills 7 | . . . . . . . . 6 . . . 1 Critical Parts Destroyed 27 | . 1 1 3 . . . . 15 5 . . 2 Critical Strikes 50 | . 2 4 4 1 1 . 2 23 7 1 . 5 Destroy 16 | . 1 . 2 . . . . 9 1 . . 3 Blast 9 | . 1 3 . 1 1 . 1 . . . . 2 Corrupt 1 | . . . . . . . . . 1 . . . Smash 20 | . . 1 2 . . . . 13 4 . . . Sever 4 | . . . . . . . 1 1 1 1 . . Melee Attacks 227 | . . 11 31 32 . . 2 99 28 17 . 7 Thermal 20 | . . . . . . . . 20 . . . . Impact 125 | . . 11 31 1 . . . 69 13 . . . Slashing 68 | . . . . 31 . . 2 10 15 10 . . Piercing 12 | . . . . . . . . . . 5 . 7 Sneak Attacks 14 | . . . 5 . . . 1 4 2 2 . . Combat Hostiles 1 | . . . 1 . . . . . . . . . Follow-up Attacks 29 | . . 2 . . . . . 19 8 . . . Damage Inflicted 20826 | 195 1140 1145 3002 2214 956 . 591 4283 2087 2269 176 2768 Guns 7179 | 195 681 10 1720 1087 637 . 82 1175 268 98 176 1050 Cannons 5435 | . 346 710 185 988 319 . 359 182 791 . . 1555 Explosions 2164 | . 113 . . . . . . 294 . 1757 . . Melee 5983 | . . 401 1063 132 . . 150 2632 1028 414 . 163 Ramming 41 | . . . 34 7 . . . . . . . . Kinetic 10237 | 83 650 720 1810 2075 956 . 441 151 754 98 105 2394 Thermal 1184 | 112 377 24 95 . . . . 294 . . 71 211 Explosive 1870 | . 113 . . . . . . . . 1757 . . Electromagnetic 1511 | . . . . . . . . 1206 305 . . . Impact 4159 | . . 401 1063 . . . . 2313 382 . . . Slashing 1536 | . . . . 132 . . 150 319 646 289 . . Piercing 288 | . . . . . . . . . . 125 . 163 Highest Corruption 27 | . . . . 25 25 20 . 9 19 27 . . Average Corruption 16 | . . . . 9 25 20 . 8 14 26 . . Corruption Purged . | . . . . . . . . . . . . . Corruption Blocked . | . . . . . . . . . . . . . Effects 245 | . . . . 63 44 1 . 27 31 79 . . Message Errors 58 | . . . . 10 14 . . 5 9 20 . . Matter Fused 59 | . . . . 17 6 1 . 10 6 19 . . Heat Flow Errors 34 | . . . . 11 9 . . 2 5 7 . . Energy Discharges 26 | . . . . 6 2 . . 3 2 13 . . Parts Rejected 2 | . . . . . 1 . . . . 1 . . Data Loss (minor) 35 | . . . . 10 5 . . 4 6 10 . . Data Loss (major) 10 | . . . . 4 1 . . . 2 3 . . Misfires 8 | . . . . 1 2 . . . 1 4 . . Alerts 9 | . . . . 3 2 . . 2 . 2 . . Weapon Failures 4 | . . . . 1 2 . . 1 . . . . Overload Shots . | . . . . . . . . . . . . . Overflow Damage 1648 | . 14 109 140 3 . . 30 824 293 119 . 116 Projectiles 157 | . 14 . 4 3 . . 30 . 7 . . 99 Explosions 19 | . . . . . . . . . . 19 . . Melee 1472 | . . 109 136 . . . . 824 286 100 . 17 Knockbacks 65 | . 6 12 4 13 . . 7 9 6 . . 8 Impact 14 | . . 3 3 . . . . 8 . . . . Kinetic 48 | . 6 9 1 11 . . 7 . 6 . . 8 Secondary 3 | . . . . 2 . . . 1 . . . . Self-Inflicted Damage 424 | . 90 . 17 7 . . . 97 . 213 . . Shots 17 | . 1 . . . . . . 2 . 14 . . Rammed 1 | . . . 1 . . . . . . . . . Targets Rammed 1 | . . . 1 . . . . . . . . . Kicked . | . . . . . . . . . . . . . Crushed . | . . . . . . . . . . . . . Highest Temperature 625 | 99 90 . 103 308 250 . 204 406 264 253 297 625 Average Temperature 100 | 44 27 . 26 91 70 . 64 110 84 76 147 239 Received Heat Transfer 6041 | . 309 306 741 836 219 . 82 1629 108 156 . 1655 Effects 40 | . . . . 2 . . . 8 3 . 3 24 Shutdowns 9 | . . . . . . . . 5 . . . 4 Energy Bleed 4 | . . . . 1 . . . . 1 . . 2 Interference 20 | . . . . 1 . . . 3 2 . 3 11 Matter Decay 3 | . . . . . . . . . . . . 3 Short Circuit 1 | . . . . . . . . . . . . 1 Damage (minor) 3 | . . . . . . . . . . . . 3 Siege Activations . | . . . . . . . . . . . . . Martial Activations . | . . . . . . . . . . . . . Shielding Activations 2 | . . . . . . . . . . . . 2 Total Turns 60 | . . . . . . . . . . . . 60 Longest Duration 39 | . . . . . . . . . . . . 39 Robots Disrupted 7 | . . . . . . . . 7 . . . . Combat Hostiles 7 | . . . . . . . . 7 . . . . Robots Corrupted 22 | . . 2 5 . . . . 13 2 . . . Combat Hostiles 17 | . . 2 4 . . . . 9 2 . . . Parts Fried 20 | . . . 6 . . . . 12 2 . . . Impact Corruptions 41 | . . 3 7 . . . . 27 4 . . . Robots Melted . | . . . . . . . . . . . . . Combat Hostiles . | . . . . . . . . . . . . . Parts Melted 6 | 2 . . 3 . . . . 1 . . . . Heat Transferred 2039 | 333 1073 50 50 . . . . 200 . . 74 259 Parts Sabotaged . | . . . . . . . . . . . . . Parts Stolen . | . . . . . . . . . . . . . Parts Stripped . | . . . . . . . . . . . . . Power Chain Reactions 2 | . . . . . . . . 2 . . . . Alert | -11 -10 -10 -8 -8 -8 -7 -6 -5 -4 -4 -4 -4 ------- Run | Yrd Mat Sub Mat Gar Mat Fac Fac Fac Fac Upp Upp War Maximum Alert Level 4 | . . . 1 4 2 . . 1 . . . . Low Security (%) 55 | 100 100 . 78 . . 100 100 36 100 . . . Level 1 21 | . . . 21 9 54 . . 63 . . . . Level 2 16 | . . . . 60 45 . . . . . . . Level 3 3 | . . . . 18 . . . . . . . . Level 4 2 | . . . . 11 . . . . . . . . Level 5 . | . . . . . . . . . . . . . High Security . | . . . . . . . . . . . . . Max Security . | . . . . . . . . . . . . . Peak Influence 1264 | 20 132 . 367 1264 616 137 147 349 113 . . . Initial 616 | . . . . 234 616 137 37 58 113 . . . Average 249 | 3 50 . 109 715 394 107 63 171 24 . . . Influence Increases 5546 | 25 587 325 946 1220 228 . 423 1157 244 226 60 105 Destroy 0b10 Robot/C 3080 | . 280 180 600 560 160 . 260 640 160 200 40 . Destroy 0b10 Robot/NC 170 | 25 20 . 30 5 15 . 15 45 10 5 . . Destroy Leader 520 | . 64 10 144 20 32 . 50 120 50 20 10 . Allied During Kill 116 | . . . . . . . 68 37 . 1 10 . Successful Hack 121 | . 52 . 20 . 6 . 12 19 12 . . . Disable Machine 60 | . 30 . . . . . 15 15 . . . . Anti-Garrison Action 650 | . . . . 500 . . . 150 . . . . Destroy Structure 168 | . 21 . 1 105 . . 3 26 12 . . . Lose Combat Pursuer 555 | . 120 135 45 30 15 . . 105 . . . 105 Miscellaneous 106 | . . . 106 . . . . . . . . . Influence Decreases 5532 | 25 574 338 585 317 1188 227 380 1045 476 226 60 91 Entered New Map 1170 | . . 7 . 127 648 167 40 62 119 . . . Time Decay 3117 | 25 574 321 411 . 350 60 283 506 266 216 60 45 Lost Part 617 | . . 10 30 190 40 . . 200 91 10 . 46 Lost Ally 184 | . . . . . . . 57 127 . . . . Purge Threat 444 | . . . 144 . 150 . . 150 . . . . Squads Dispatched 25 | . 3 . 6 . 1 . 3 8 4 . . . Investigation 4 | . 2 . 1 . . . . 1 . . . . Extermination 6 | . . . . . . . 1 3 2 . . . Reinforcement 10 | . 1 . 2 . 1 . 2 2 2 . . . Assault 2 | . . . . . . . . 2 . . . . Garrison 3 | . . . 3 . . . . . . . . . Intercept . | . . . . . . . . . . . . . Searches Triggered . | . . . . . . . . . . . . . Construction Impeded 1 | . . . . . . . . 1 . . . . Haulers Reinforced 2 | . . . . . . . 1 1 . . . . Active Scanning Responses . | . . . . . . . . . . . . . Cargo Convoy Interrupts . | . . . . . . . . . . . . . Stealth | -11 -10 -10 -8 -8 -8 -7 -6 -5 -4 -4 -4 -4 --------- Run | Yrd Mat Sub Mat Gar Mat Fac Fac Fac Fac Upp Upp War Distress Signals 12 | . 3 . 1 . . . . 5 2 . . 1 Communications Jammed . | . . . . . . . . . . . . . Distress Signals . | . . . . . . . . . . . . . Times Spotted 295 | . 34 22 29 35 10 . 12 59 19 7 2 66 Peak Tracking Total 17 | . 4 4 6 5 3 . 4 9 4 9 2 17 Tactical Retreats 26 | . 8 3 3 1 1 . . 6 . . . 4 Traps | -11 -10 -10 -8 -8 -8 -7 -6 -5 -4 -4 -4 -4 ------- Run | Yrd Mat Sub Mat Gar Mat Fac Fac Fac Fac Upp Upp War Traps Triggered 8 | . 3 . . 2 . . . 1 . . . 2 Indirectly . | . . . . . . . . . . . . . Trap Hack Attempts . | . . . . . . . . . . . . . Triggered . | . . . . . . . . . . . . . Disarmed 4 | . . . . . . . . 4 . . . . Reprogrammed . | . . . . . . . . . . . . . Reused . | . . . . . . . . . . . . . Traps Extracted . | . . . . . . . . . . . . . Installed . | . . . . . . . . . . . . . Triggered . | . . . . . . . . . . . . . Machines | -11 -10 -10 -8 -8 -8 -7 -6 -5 -4 -4 -4 -4 ---------- Run | Yrd Mat Sub Mat Gar Mat Fac Fac Fac Fac Upp Upp War Machines Disabled 10 | . 2 2 . 2 . . 1 2 . . . 1 Max in Single Turn 2 | . 2 1 . 1 . . . 1 . . . 1 Garrison Access 1 | . . . . . . . . 1 . . . . Garrison Relay 2 | . . . . 2 . . . . . . . . Machines Repaired . | . . . . . . . . . . . . . Machines Dismantled . | . . . . . . . . . . . . . Machines Sabotaged . | . . . . . . . . . . . . . Overloaded Fab Kills . | . . . . . . . . . . . . . Hacking | -11 -10 -10 -8 -8 -8 -7 -6 -5 -4 -4 -4 -4 --------- Run | Yrd Mat Sub Mat Gar Mat Fac Fac Fac Fac Upp Upp War Machines Accessed 29 | . 8 . 6 2 2 . 1 5 1 2 1 1 Terminals 18 | . 6 . 5 2 2 . . 3 . . . . Fabricators 1 | . . . . . . . . 1 . . . . Repair Stations 2 | . 1 . . . . . 1 . . . . . Recycling Units 1 | . 1 . . . . . . . . . . . Scanalyzers 2 | . . . . . . . . 1 1 . . . Garrison Access 1 | . . . 1 . . . . . . . . . Total Hacks 66 | . 28 . 11 3 5 . 2 7 3 2 1 4 Successful 41 | . 18 . 6 1 2 . 1 5 1 2 1 4 Failed 25 | . 10 . 5 2 3 . 1 2 2 . . . Catastrophic 5 | . . . 1 1 3 . . . . . . . Database Lockouts . | . . . . . . . . . . . . . Manual 45 | . 29 . 8 . 3 . . 3 . . . 2 Terminals 45 | . 23 . 10 3 5 . . 4 . . . . Fabricators 2 | . . . . . . . . 2 . . . . Repair Stations 5 | . 3 . . . . . 2 . . . . . Recycling Units 2 | . 2 . . . . . . . . . . . Scanalyzers 4 | . . . . . . . . 1 3 . . . Garrison Access 1 | . . . 1 . . . . . . . . . Terminal Hacks 21 | . 5 . 3 1 2 . . 3 . 2 1 4 Record 5 | . . . . . . . . . . 1 . 4 Robot Analysis 7 | . 4 . 2 . 1 . . . . . . . Prototype ID Bank 1 | . 1 . . . . . . . . . . . Open Door 2 | . . . . . . . . . . 1 1 . Emergency Access Points 1 | . . . . 1 . . . . . . . . Fabricator Index 1 | . . . . . . . . 1 . . . . Unreport Threat 3 | . . . 1 . 1 . . 1 . . . . Disarm Traps 1 | . . . . . . . . 1 . . . . Fabricator Hacks 1 | . . . . . . . . 1 . . . . Network Status 1 | . . . . . . . . 1 . . . . Repair Station Hacks 3 | . 2 . . . . . 1 . . . . . Scan Component 2 | . 1 . . . . . 1 . . . . . Repair 1 | . 1 . . . . . . . . . . . Recycling Unit Hacks . | . . . . . . . . . . . . . Scanalyzer 2 | . . . . . . . . 1 1 . . . Retrieve Study 2 | . . . . . . . . 1 1 . . . Garrison Access Hacks 1 | . . . 1 . . . . . . . . . Unlock Access 1 | . . . 1 . . . . . . . . . Unauthorized Hacks 13 | . 11 . 2 . . . . . . . . . Terminals 11 | . 9 . 2 . . . . . . . . . Track 1 | . . . 1 . . . . . . . . . Botnet 5 | . 5 . . . . . . . . . . . Disrupt 1 | . . . 1 . . . . . . . . . Skim 4 | . 4 . . . . . . . . . . . Fabricators . | . . . . . . . . . . . . . Repair Stations . | . . . . . . . . . . . . . Recycling Units 2 | . 2 . . . . . . . . . . . Reject 1 | . 1 . . . . . . . . . . . Mask 1 | . 1 . . . . . . . . . . . Scanalyzers . | . . . . . . . . . . . . . Garrison Access . | . . . . . . . . . . . . . Data Cores Recovered . | . . . . . . . . . . . . . Used . | . . . . . . . . . . . . . Hacking Detections 20 | . 7 . 4 2 2 . 1 3 1 . . . Full Trace Events . | . . . . . . . . . . . . . Feedback Events . | . . . . . . . . . . . . . Feedback Blocked . | . . . . . . . . . . . . . Robot Schematics Acquired . | . . . . . . . . . . . . . Robots Built . | . . . . . . . . . . . . . Authchips . | . . . . . . . . . . . . . Time . | . . . . . . . . . . . . . Total Robot Build Rating . | . . . . . . . . . . . . . Part Schematics Acquired . | . . . . . . . . . . . . . Parts Built . | . . . . . . . . . . . . . Authchips . | . . . . . . . . . . . . . Time . | . . . . . . . . . . . . . Total Part Build Rating . | . . . . . . . . . . . . . Part Studies Acquired 2 | . . . . . . . . 1 1 . . . Parts Repaired 1 | . 1 . . . . . . . . . . . Time 13 | . 13 . . . . . . . . . . . Parts Recycled . | . . . . . . . . . . . . . Recycled Matter . | . . . . . . . . . . . . . Retrieved Matter . | . . . . . . . . . . . . . Retrieved Components . | . . . . . . . . . . . . . Parts Scanalyzed . | . . . . . . . . . . . . . Part Schematics Acquired . | . . . . . . . . . . . . . Parts Damaged . | . . . . . . . . . . . . . Bothacking | -11 -10 -10 -8 -8 -8 -7 -6 -5 -4 -4 -4 -4 ------------ Run | Yrd Mat Sub Mat Gar Mat Fac Fac Fac Fac Upp Upp War Used RIF Installer 1 | . . . . 1 . . . . . . . . Autooverride 1 | . . . . 1 . . . . . . . . Robots Hacked . | . . . . . . . . . . . . . Non-combat . | . . . . . . . . . . . . . Combat . | . . . . . . . . . . . . . Robot Hacks Applied . | . . . . . . . . . . . . . Relay Couplers Released 13 | . . . . 8 . . . 5 . . . . Machine Destruction 10 | . . . . 8 . . . 2 . . . . Programmers 3 | . . . . . . . . 3 . . . . Attached 1 | . . . . . . . . . . 1 . . Fabnet Peak Effective % . | . . . . . . . . . . . . . Robots Rewired 6 | . . . . . . . . 5 . 1 . . Allies Hacked 1 | . . . . . . . . 1 . . . . Hacks Repelled . | . . . . . . . . . . . . . Allies | -11 -10 -10 -8 -8 -8 -7 -6 -5 -4 -4 -4 -4 -------- Run | Yrd Mat Sub Mat Gar Mat Fac Fac Fac Fac Upp Upp War Total Allies 16 | . . 1 . . . . 3 8 . 3 . 1 Largest Group 3 | . . 1 . . . . 3 3 . 3 3 2 Highest-Rated Group 141 | . . 90 . . . . 123 141 . 126 126 119 Highest-Rated Ally 119 | . . 90 . . . . 41 47 . 47 42 119 Total Orders . | . . . . . . . . . . . . . Ally Attacks 126 | . . 23 . . . . 41 38 . 3 6 15 Total Damage 3979 | . . 720 . . . . 1325 979 . 72 109 774 Kills 24 | . . 3 . . . . 12 7 . . 1 1 Allies Corrupted . | . . . . . . . . . . . . . Allies Melted . | . . . . . . . . . . . . . X0-1V1 Amusement Gains 318 | . 9 10 . 55 36 1 19 69 33 19 8 59 Good Acts 93 | . . 24 11 10 1 . 2 14 4 10 1 16 Bad Acts 38 | . . 5 3 10 2 1 1 6 5 4 . 1 Intel | -11 -10 -10 -8 -8 -8 -7 -6 -5 -4 -4 -4 -4 ------- Run | Yrd Mat Sub Mat Gar Mat Fac Fac Fac Fac Upp Upp War Active Infowar (turns) 3306 | 45 471 . . . . . 223 296 412 1167 376 316 Sensors 1970 | . . . . . . . 223 . . 1167 376 204 Terrain 4 | . . . . . . . . 4 . . . . Traps 524 | . . . . . . . . . 412 . . 112 Seismic 808 | 45 471 . . . . . . 292 . . . . Robot Analysis Total 7 | . 4 . 2 . 1 . . . . . . . Derelict Logs Recovered 3 | . . . . . . . . . . 1 2 . Drone Launches 2 | . . . . . . . 2 . . . . . Drone Recoveries . | . . . . . . . . . . . . . Exploration | -11 -10 -10 -8 -8 -8 -7 -6 -5 -4 -4 -4 -4 ------------- Run | Yrd Mat Sub Mat Gar Mat Fac Fac Fac Fac Upp Upp War Turns Passed 16758 | 140 1922 2680 1996 2383 789 135 712 2122 958 1831 376 714 Spaces Moved 6708 | 54 674 810 640 687 232 62 306 847 387 1224 314 471 Core 90 | 2 . 1 . . . . . . . . . 87 Treads 1619 | 52 674 631 174 36 52 . . . . . . . Legs 3853 | . . 3 150 470 180 62 306 633 253 1224 314 258 Wheels 657 | . . 175 316 165 . . . . 1 . . . Hover 361 | . . . . 16 . . . 214 131 . . . Flight 128 | . . . . . . . . . 2 . . 126 Fastest Speed 35 | 50 160 150 140 155 186 205 207 124 104 120 108 35 Average Speed 207 | 155 239 295 254 286 271 207 207 190 180 140 112 94 Slowest Speed 1450 | 160 320 1450 750 750 320 210 210 290 300 209 120 1400 Overloaded Moves . | . . . . . . . . . . . . . Propulsion Burnouts . | . . . . . . . . . . . . . Robots Hopped . | . . . . . . . . . . . . . Potential Cave-ins . | . . . . . . . . . . . . . Cave-ins Triggered . | . . . . . . . . . . . . . Exploration Rate (%) 42 | 4 97 60 52 65 32 3 9 30 9 98 45 51 Regions Visited 12 Branch Regions 4 Pre-discovered Areas 2 | . . 1 . . . . . . . . 1 . Known Exits Taken 3 | . . 1 1 . . . . . . . 1 . Unknown Exits Taken 8 | 1 1 . . . 1 1 1 1 1 1 . . Scrap Searched 5 | . . . . . . . . . . 4 1 . Spaces Dug 8 | . . . 1 . . . . 5 . 2 . . Terrain Destroyed 183 | . 19 . 1 . . . 2 12 6 126 1 16 Melee 8 | . . . 1 . . . . 5 . 2 . . Projectile 26 | . . . . . . . 2 . 6 1 1 16 AOE 148 | . 19 . . . . . . 6 . 123 . . Terrain Rammed 1 | . . . . 1 . . . . . . . . Walls Destroyed . | . . . . . . . . . . . . . Machines Disabled . | . . . . . . . . . . . . . Actions | -11 -10 -10 -8 -8 -8 -7 -6 -5 -4 -4 -4 -4 --------- Run | Yrd Mat Sub Mat Gar Mat Fac Fac Fac Fac Upp Upp War Total 8467 | 80 878 958 881 904 332 73 363 1179 546 1292 331 650 Wait 386 | . 101 42 57 5 16 . 6 29 43 5 3 79 Move 6697 | 53 673 809 640 686 231 61 305 846 386 1223 313 471 Hop . | . . . . . . . . . . . . . Pick Up 148 | 7 20 12 26 18 12 4 13 15 5 10 3 3 Fast Attach 132 | 7 5 4 13 17 8 1 3 27 19 10 1 17 Attach 71 | . . 8 4 12 2 2 4 18 6 3 . 12 Detach 36 | . 3 2 4 6 1 . 2 9 4 1 1 3 Swap 97 | . 6 15 13 29 4 1 6 14 . 4 4 1 Drop 141 | . 13 7 37 14 18 4 12 20 5 5 3 3 Fire 544 | 13 57 49 53 74 40 . 10 125 52 14 3 54 Melee 192 | . . 9 31 32 . . 2 74 20 17 . 7 Ram 2 | . . . 1 1 . . . . . . . . Kick . | . . . . . . . . . . . . . Crush . | . . . . . . . . . . . . . Escape Stasis 12 | . . . 2 10 . . . . . . . . Rewire 9 | . . 1 . . . . . 2 6 . . . Trap . | . . . . . . . . . . . . . Miscellaneous . | . . . . . . . . . . . . . Route ------- -11/Scrapyard -10/Materials (discovered 5 exits: [*Mat x3] / [*Min] / [*Sub]) -10/Subcaves (discovered 3 exits: *Mat x2 / *Rec) -8/Materials (discovered 2 exits: *Fac / Gar) -8/Garrison (discovered 3 exits: *Mat x3) -8/Materials -7/Factory -6/Factory -5/Factory -4/Factory -4/Upper Caves -4/Upper Caves -4/Warlord (discovered 1 exit: [*Pro]) History --------- Turn | Location | Event 28 | -11/Scrapyard | Discovered new exit (range 16) 141 | -11/Scrapyard | Entered Materials 308 | -10/Materials | Build established: Mutant 373 | -10/Materials | Discovered new exit (range 14) 517 | -10/Materials | Discovered new exit (range 16) 709 | -10/Materials | Repaired Lgt. Treads 1020 | -10/Materials | Discovered new exit (range 14) 1363 | -10/Materials | Discovered new exit (range 4) 2013 | -10/Materials | Discovered new exit (range 8) 2051 | -10/Materials | Prayed at D.C.S.S. Altar Unit 2063 | -10/Materials | Entered Subcaves 2289 | -10/Subcaves | Identified exit to Recycling 2289 | -10/Subcaves | X0-1V1 revealed exit location to -7/Recycling 2363 | -10/Subcaves | Learned location of Zion (-7) 2363 | -10/Subcaves | Met a Zionite searching for "candidates" 2777 | -10/Subcaves | Core integrity fell below 50% 3144 | -10/Subcaves | Shifting Twisted Machinery released Battle Rifle 3332 | -10/Subcaves | Shifting Twisted Machinery released Sub. Power Source 4262 | -10/Subcaves | Melee accuracy permanently improved by X0-1V1 (+9%) 4279 | -10/Subcaves | Identified exit to Materials 4279 | -10/Subcaves | X0-1V1 revealed exit location to -8/Materials 4282 | -10/Subcaves | Core integrity restored by X0-1V1 (+44) 4286 | -10/Subcaves | Propulsion slot count permanently improved by X0-1V1 (+1) 4296 | -10/Subcaves | X0-1V1 activates XOMVISION 4308 | -10/Subcaves | Core integrity permanently improved by X0-1V1 (+400) 4366 | -10/Subcaves | X0-1V1 revealed exit location to -8/Materials 4376 | -10/Subcaves | X0-1V1 sent you into danger 4377 | -10/Subcaves | A swath of the cavern ceiling suddenly collapsed 4394 | -10/Subcaves | X0-1V1 sent allied H-61 Shepherd (x1) 4455 | -10/Subcaves | X0-1V1 sent you into danger 4541 | -10/Subcaves | Lost 4 parts (1p2n1u) 4743 | -10/Subcaves | Entered Materials 4743 | -8/Materials | Evolved 4 slots: Propulsion x1, Utility x3 4745 | -8/Materials | X0-1V1 added 0b10 threat records associated with you (minor) 4758 | -8/Materials | X0-1V1 foreshadows a heat wave 4858 | -8/Materials | X0-1V1 activates XOMVISION 4990 | -8/Materials | Ambient heat levels rising (+10) 5115 | -8/Materials | X0-1V1 activates XOMVISION 5274 | -8/Materials | Ambient heat levels rising (+10) 5817 | -8/Materials | Ambient heat levels falling (-10) 6040 | -8/Materials | Ambient heat levels falling (-10) 6116 | -8/Materials | Discovered new exit (range 17) 6256 | -8/Materials | Garrison activated, responded to threat 6336 | -8/Materials | Destroyed 8 combat bots 6739 | -8/Materials | Identified exit to Garrison 6739 | -8/Materials | Entered Garrison 6783 | -8/Garrison | Triggered checkpoint 6794 | -8/Garrison | Garrison Relay disabled 6851 | -8/Garrison | Triggered checkpoint 6894 | -8/Garrison | Identified exit to Materials 6894 | -8/Garrison | X0-1V1 revealed exit location to -8/Materials 6934 | -8/Garrison | Spotted B-75 Beast 7004 | -8/Garrison | Installed Relay Interface Framework 7052 | -8/Garrison | Triggered checkpoint 7094 | -8/Garrison | X0-1V1 revealed exit location to -8/Materials 7110 | -8/Garrison | Expanded RIF knowledge: Autooverride 7195 | -8/Garrison | Triggered checkpoint 7238 | -8/Garrison | X0-1V1 downgraded hostiles (x1) 7639 | -8/Garrison | Discovered exit to Materials (range 11) 7710 | -8/Garrison | Build established: Scavenger-Mutant 7880 | -8/Garrison | Lost 7 parts (3n2u2w) 7937 | -8/Garrison | Forcibly received Sfc. Transmogifier from X0-1V1 7977 | -8/Garrison | Core integrity fell below 50% 7981 | -8/Garrison | Lost 4 parts (2n1u1w) 7987 | -8/Garrison | X0-1V1 whisked you away to safety 8078 | -8/Garrison | Build established: Mutant 8508 | -8/Garrison | X0-1V1 mutated your Propulsion slot to Weapon slot 8559 | -8/Garrison | Triggered checkpoint 8568 | -8/Garrison | Triggered checkpoint 8629 | -8/Garrison | Triggered checkpoint 8698 | -8/Garrison | System corruption reached 10% 8793 | -8/Garrison | Triggered checkpoint 8875 | -8/Garrison | Garrison Relay disabled 9122 | -8/Garrison | Entered Materials 9172 | -8/Materials | Build established: Scavenger-Mutant 9351 | -8/Materials | Core integrity fell below 20% 9485 | -8/Materials | Lost 3 parts (2p1w) 9819 | -8/Materials | Build established: Tank 9880 | -8/Materials | Discovered new exit (range 7) 9911 | -8/Materials | Entered Factory 9911 | -7/Factory | Evolved 2 slots: Propulsion x2 10023 | -7/Factory | Discovered new exit (range 5) 10031 | -7/Factory | System corruption reached 10% 10046 | -7/Factory | Entered another Factory area 10046 | -6/Factory | Evolved 2 slots: Power x1, Weapon x1 10097 | -6/Factory | X0-1V1 sent you to a vault 10336 | -6/Factory | X0-1V1 announced a LAN party 10684 | -6/Factory | Discovered new exit (range 15) 10758 | -6/Factory | Entered another Factory area 10758 | -5/Factory | Accompanied by 1 ally 10758 | -5/Factory | Evolved 2 slots: Utility x2 10765 | -5/Factory | X0-1V1 mutated your Weapon slot to Power slot 11164 | -5/Factory | X0-1V1 sent you to a vault 11517 | -5/Factory | Lost 4 allies 11518 | -5/Factory | X0-1V1 sent hostile H-66 Slayer (x2) 11719 | -5/Factory | X0-1V1 upgraded hostiles (x2) 11888 | -5/Factory | X0-1V1 activates XOMVISION 12171 | -5/Factory | Build established: Mutant 12175 | -5/Factory | Lost 6 parts (4p1n1w) 12285 | -5/Factory | Lost 5 parts (1p2n2u) 12398 | -5/Factory | X0-1V1 whisked you away to safety 12414 | -5/Factory | Lost 4 parts (2n1u1w) 12756 | -5/Factory | Discovered new exit (range 4) 12781 | -5/Factory | Build established: Scavenger-Gladiator 12880 | -5/Factory | Entered another Factory area 12880 | -4/Factory | Evolved 2 slots: Utility x1, Weapon x1 13063 | -4/Factory | X0-1V1 enhanced Transport squad support 13156 | -4/Factory | System corruption reached 10% 13166 | -4/Factory | Lost 6 parts (1p3n1u1w) 13300 | -4/Factory | X0-1V1 announced a LAN party 13517 | -4/Factory | Lost 7 parts (1p2n3u1w) 13637 | -4/Factory | Lost 9 parts (1p3n2u3w) 13647 | -4/Factory | Core integrity restored by X0-1V1 (+248) 13751 | -4/Factory | Discovered new exit (range 9) 13780 | -4/Factory | Build established: Mutant 13838 | -4/Factory | Entered Upper Caves 13846 | -4/Upper Caves | Learned Research terminal intel 13993 | -4/Upper Caves | Attracted the attention of an 0b10 outpost 14026 | -4/Upper Caves | Destroyed 9 combat bots 14382 | -4/Upper Caves | X0-1V1 rewrote Veteran 7a IFF filter 14388 | -4/Upper Caves | X0-1V1 sent allied C-35 Carver (x2) 14421 | -4/Upper Caves | Entered a destroyed Warlord outpost 14562 | -4/Upper Caves | Encountered a Warlord checkpoint 14674 | -4/Upper Caves | Discovered new exit (range 5) 14729 | -4/Upper Caves | Build established: Derelict-Gunner 14887 | -4/Upper Caves | X0-1V1 mutated your Weapon slot to Utility slot 15001 | -4/Upper Caves | X0-1V1 activates XOMVISION 15456 | -4/Upper Caves | X0-1V1 activates XOMVISION 15669 | -4/Upper Caves | Entered another Upper Caves area 15669 | -4/Upper Caves | Accompanied by 3 allies 15751 | -4/Upper Caves | Build established: Gunner 15844 | -4/Upper Caves | Identified exit to Warlord 15844 | -4/Upper Caves | X0-1V1 revealed exit location to -4/Warlord 15960 | -4/Upper Caves | Learned Research trap positions 16045 | -4/Upper Caves | Entered Warlord 16045 | -4/Warlord | Accompanied by 2 allies 16104 | -4/Warlord | Discovered new exit (range 8) 16224 | -4/Warlord | RIF detected upon attempting to enter Warlord's base 16224 | -4/Warlord | Attacked by Warlord forces 16237 | -4/Warlord | Spotted EO-HGX(B) 16237 | -4/Warlord | Spotted H7-SZR(B) 16262 | -4/Warlord | Weapon slot count temporarily expanded by X0-1V1 (+4) 16264 | -4/Warlord | X0-1V1 sent allied Executioner (x1) 16269 | -4/Warlord | Destroyed H7-SZR(B) 16272 | -4/Warlord | Allies destroyed EO-HGX(B) 16401 | -4/Warlord | Warlord's base attacked by MAIN.C 16418 | -4/Warlord | Lost 4 parts (1n1u2w) 16468 | -4/Warlord | Spotted B-90 Cyclops 16501 | -4/Warlord | Found Prototype Ballistic Cannon 16501 | -4/Warlord | Identified Hvy. Autocannon 16505 | -4/Warlord | Lost 10 parts (3p4u3w) 16558 | -4/Warlord | Core integrity fell below 50% 16565 | -4/Warlord | X0-1V1 whisked you away to safety 16569 | -4/Warlord | Core integrity restored by X0-1V1 (+408) 16632 | -4/Warlord | Lost 12 parts (4n5u3w) 16678 | -4/Warlord | Core integrity fell below 20% 16708 | -4/Warlord | Lost 6 parts (3n1u2w) 16742 | -4/Warlord | X0-1V1 activates XOMVISION 16751 | -4/Warlord | Warlord forces counterattacked 16759 | -4/Warlord | Destroyed by G-67 Veteran with Plasma Rifle Last Messages --------------- 16699_ Discarded Hds. Centrium Leg. 16701_ The unstable cave ceiling collapses. 16701_ ANNOUNCEMENT: Detected 1 Behemoth squad, 1 Hunter squad, 1 Saboteur squad, 1 Grunt squad. 16704_ Critical hit (Burn: +80). 16709_ Knocked back. 16717_ Slug penetrates Wall. 16723_ X0-1V1 manipulates the space around you (+TH% resistance). 16729_ Your Sfc. Transmogrifier briefly glows, restoring some integrity. 16729_ Penetrated by Slug. 16730_ Acquired 7 matter. 16731_ OH-H1O(M) destroyed. 16735_ Triggered Fire Trap. 16735_ Burning plasma bursts from the floor. 16742_ Suggestive images of robots vie for attention in your data streams. 16742_ X0-1V1: "Enjoy your XOMVISION!" 16751_ ANNOUNCEMENT: Designated combat units report to gate area for counterattack. 16759_ Acquired 39 matter. 16759_ X0-1V1 howls with laughter! Map ----- +----------------------------------------------------+ | ??????????????????????????????????????????????#?## | | ??????????????????????????????????????????????#+## | | ??????????????????????????????????????????????# | | ?????????????????????????????????????????????## | | ?????????????????????????????????????????????#" | | ?????????????????????????????????????????????#" ^ | | ?????????????????????????????????????????????#" ^ | | ??????????????????????????????????????????????# | | ??????????????????????????????????????????????# | | ?????????????????b????????????????????????????# ^ | | ????????????????????????????????K?????????????# | | ??????????????????????????????????????????????#### | | ???????????????????????????????W?????????????????? | | ????????????????M????????????????????????????????? | | ????????????????????????????????K????????????????? | | ??????????????????????????????????????????????#### | | ??????????????????g???????????????????????????# | | ??????????????????????????????????????????????# | | ??????????????????????????????????????????????# | | ????????????????????????????????????????#######+## | | ??????????# ?????????????????##?#??????# | | ??????? / m ###########;#;######## | | ??????????# b %^ % x[%= | | ??????????# #### ;#"###+####### | | ??????????###?????????# %h ## #?? | | ??????????????????????# @ gh ## #?? | | ??????????????????????# ##+##;##### ## #?? | | ??????????????????????# ## ## ## #?? | | ?????????????????????/ ## ## / """"" #?? | | ??????????????????? ##### ##### """"" #?? | | ????????????????? ?????# #???# """"" #?? | | ????????????????###??????# #???# #?? | | ?????????????????????????#########???###########?? | | | | | | | | | | | | | | | | | | | | | | | | | | | | | | | | | | | +----------------------------------------------------+ Best States ------------- Heat Dissipation 97 Energy Generation 50 Energy Capacity 2550 Matter Stores 1000 Matter Capacity 1000 Sight Range 22 Robot Scan Range 20 Terrain Scan Density 210 Additional Mass Support 6 Armor Coverage 1825 Resistance: KI 92 Resistance: TH 46 Resistance: EX 50 Resistance: EM 90 Propulsion Shielding 15 Point Defense Rating 160 Weapon Cycling 20 Phase Shifting 10 Evasion (%) 63 Targeting Accuracy 10 Melee Accuracy 6 Target Analysis 8 Core Analysis 9 Armor Integrity Analysis 30 Recoil Reduction 3 Matter Filtering 30 Particle Charging 25 Kinecelleration 40 Force Boost 20 Salvage Targeting 4 Defensive Hacking 11 Relay Coupler Types 1 Relay Coupler Value 99 Item Schematics ----------------- None Robot Schematics ------------------ None Fabricated ------------ Nothing Repaired ---------- Lgt. Treads | 24% | -10/Materials Studied --------- Imp. Antigrav System | -5/Factory | Hacked Myomer Leg | -4/Factory | Hacked Alien Tech Used ----------------- None Achievements -------------- Chaos Is Inevitable Executioner Oh No You Don't! Physics Protects Challenges ------------ None Game ------ Seed DeliveryDiametricRail Manual? 0 Play Time 02:49:01 Cumulative 115.1 hours Start 2026.06.24 @ 08:09:11 End 2026.06.24 @ 11:10:32 Sessions 1 Manual Loads 0 Difficulty Rogue Special Mode None Game No. 142 Rogue 142 Adventurer 0 Explorer 0 Win Type - Total 0 Types 0/0/0/0/0/0/0/0/0/0 Lore% 53 Gallery% 46 Achievement% 36 Wizard Run 0 Options --------- Layout 0 ASCII 0 Keyboard 0 Movement Mouse Keybinds 1 Fullscreen 2 Font 24/X11 Map View 76x50 Zoom Use 4% Tactical HUD 1 Map Filters NONE Filters NONE Steam 1 RUN: ea718800-7ce9-4feb-b0bc-3091047e3a15